Cogmind - Beta 14 @@@ ROGUE MODE // 2024.09.11 @ 21:28:37 Player: Maienne du Crabe Result: Destroyed by G-47 Trooper with Particle Gun Performance ------------- Evolutions (2) 1000 Regions Visited (5) 1000 Robots Destroyed (47) 235 Value Destroyed (1305) 1305 Prototype IDs (1) 20 Alien Tech Used (0) 0 Bonus (-105) -105 TOTAL SCORE: 3455 Bonus ------- Follower Combat Kills 14 Friendly Fire -119 Cogmind --------- Core Integrity 0/550 Matter 250/300 Energy 160/160 System Corruption 16% Temperature Cool (10) Movement Hovering (120) Ox1 Location -8/Materials Parts ------- > --- POWER (1) -------- Light Nuclear Core > --- PROPULSION (3) --- Airjet Improved VTOL Module > --- UTILITY (5) ------ Sensor Array ECM Suite > --- WEAPON (2) ------- Axe > --- INVENTORY (5) ---- Light Ion Engine Peak State ------------ > --- POWER ------------ Improved Ion Engine > --- PROPULSION ------- Improved VTOL Module Improved VTOL Module Improved VTOL Module > --- UTILITY ---------- Improved Cooling System Improved Terrain Scanner Melee Analysis Suite ECM Suite System Shield > --- WEAPON ----------- Shock Rifle Katana > --- INVENTORY -------- Improved VTOL Module Improved VTOL Module High-capacity Battery Grenade Launcher [Rating: 35] Favorites ----------- Power Improved Ion Engine Engine Improved Ion Engine Power Core Light Nuclear Core Propulsion Light Treads Treads Light Treads Leg Aluminum Leg Wheel Wheel Hover Unit Airjet Flight Unit Improved VTOL Module Utility Large Storage Unit Device Heat Sink Storage Large Storage Unit Processor Signal Interpreter Hackware System Shield Protection Power Shielding Weapon Assault Rifle Energy Gun Beam Rifle Ballistic Gun Assault Rifle Ballistic Cannon Improved Light Cannon Launcher Grenade Launcher Special Weapon Mining Laser Impact Weapon Maul Slashing Weapon Katana Build | -11 -10 -10 -9 -9 -8 ------- Run | Yrd Mat Min Mat Min Mat Slots Evolved 4 | . . . 2 . 2 Power . | . . . . . . Propulsion 1 | . . . . . 1 Utility 3 | . . . 2 . 1 Weapon . | . . . . . . Parts Attached 86 | 7 4 1 27 5 42 Power 9 | 1 . 1 2 . 5 Engine 7 | 1 . 1 2 . 3 Core 2 | . . . . . 2 Reactor . | . . . . . . Propulsion 22 | 2 1 . 8 . 11 Treads 7 | 2 1 . 4 . . Leg 1 | . . . 1 . . Wheel 3 | . . . 3 . . Hover 2 | . . . . . 2 Flight 9 | . . . . . 9 Utility 28 | 2 1 . 7 1 17 Device 13 | 1 . . 3 . 9 Storage 4 | 1 1 . . . 2 Processor 3 | . . . 2 . 1 Hackware 1 | . . . . . 1 Protection 7 | . . . 2 1 4 Artifact . | . . . . . . Weapon 27 | 2 2 . 10 4 9 Energy Gun 8 | . . . 3 1 4 Energy Cannon . | . . . . . . Ballistic Gun 6 | 2 1 . 2 1 . Ballistic Cannon 1 | . . . 1 . . Launcher 5 | . 1 . 2 . 2 Special Weapon 1 | . . . . 1 . Impact Weapon 3 | . . . 2 1 . Slashing Weapon 3 | . . . . . 3 Piercing Weapon . | . . . . . . Special Melee Weapon . | . . . . . . Unidentified Prototypes 1 | . . . . . 1 Parts Lost 27 | . . . 6 . 21 Power 3 | . . . . . 3 Propulsion 8 | . . . 3 . 5 Utility 10 | . . . 2 . 8 Weapon 6 | . . . 1 . 5 Highest Loss Streak 11 | . . . 4 . 11 To Critical Strikes . | . . . . . . Average Slot Usage (%) 89 | . 100 100 91 100 75 Engine 10 | . 14 14 11 11 7 Treads 14 | . 28 28 10 22 6 Leg 1 | . . . 4 . . Flight 4 | . . . . . 13 Device 12 | . 14 14 13 11 11 Storage 10 | . 14 14 11 11 6 Processor 4 | . . . 4 11 4 Protection 7 | . . . 11 11 8 Energy Gun 4 | . . . 4 8 6 Ballistic Gun 8 | . 27 28 5 1 . Ballistic Cannon 1 | . . . 2 4 . Impact Weapon 4 | . . . 8 5 3 Slashing Weapon 1 | . . . . . 5 Peak Build Rating 35 | 9 10 10 14 13 35 Average Rating 13 | 5 9 10 12 12 19 On Entrance 9 | . 9 10 10 13 13 Naked Turns . | . . . . . . Heaviest Build 43 | 13 28 28 36 36 43 Greatest Support 40 | 40 40 40 40 40 40 Greatest Overweight (x) 14 | . . . 11 . 14 Average Overweight (x) . | . . . 1 . . Largest Inventory Capacity 15 | 8 15 15 15 15 15 Average Capacity 12 | 7 11 15 15 15 9 Most Carried 15 | 2 12 15 13 13 15 Average Carried 9 | 1 5 13 11 11 6 Final Capacity 15 | 8 15 15 15 15 5 Final Carried 14 | 2 12 14 12 12 1 Class Distribution -------------------- 54% | Mutant 38% | Scavenger-Mutant 6% | Sprinter Dominant Class ---------------- Mutant | -10/Materials Mutant | -10/Mines Scavenger-Mutant | -9/Materials Scavenger-Mutant | -9/Mines Mutant | -8/Materials Resources | -11 -10 -10 -9 -9 -8 ----------- Run | Yrd Mat Min Mat Min Mat Matter Collected 1435 | 278 61 162 436 103 395 Remotely . | . . . . . . Salvage Created 1550 | 102 99 140 482 107 620 Parts 104 | 3 15 9 41 5 31 Haulers Intercepted 1 | . 1 . . . . Recyclers Shooed 2 | . 1 . . 1 . Parts Field Recycled . | . . . . . . Retrieved Matter . | . . . . . . Parts Self-Destructed . | . . . . . . Prevented . | . . . . . . Kills | -11 -10 -10 -9 -9 -8 ------- Run | Yrd Mat Min Mat Min Mat Combat Hostiles Destroyed 34 | . 4 2 13 3 12 Melee 13 | . . . 1 1 11 Guns 13 | . 1 2 8 2 . Cannons 2 | . . . 2 . . AOE 5 | . 3 . 2 . . Classes Destroyed 11 | 2 4 1 2 1 1 Worker 3 | . . 1 . 1 1 Builder 1 | . . . 1 . . Tunneler 2 | 1 . 1 . . . Hauler 1 | . 1 . . . . Recycler 2 | 1 . . 1 . . Watcher 3 | . 1 . 2 . . Swarmer 7 | . 3 . 4 . . Grunt 21 | . 1 2 6 2 10 Brawler 1 | . . . . . 1 Duelist 1 | . . . . 1 . Sentry 5 | . . . 3 . 2 Best Kill Streak 8 | 1 4 2 8 3 3 Combat Bots Only 4 | . 3 2 4 2 3 Max Kills in Single Turn 2 | 1 2 1 2 1 1 Gunslinging . | . . . . . . Exploded 2 | . 2 . 1 . . Melee 1 | . . . 1 1 1 Uniques/NPCs Destroyed . | . . . . . . Combat | -11 -10 -10 -9 -9 -8 -------- Run | Yrd Mat Min Mat Min Mat Hostile Shots Fired 277 | . 16 9 95 11 146 Missed 96 | . 2 1 24 4 65 Damage Taken 3495 | . 152 122 1515 79 1627 Core 922 | . 7 12 329 12 562 Absorbed by Shields . | . . . . . . Redirected to Shielding 18 | . . . 15 3 . Core Remaining (%) 68 | 100 . 92 . 14 . Volleys Fired 110 | 8 13 18 47 13 11 Largest 2 | 2 2 2 2 2 1 Hottest 100 | 40 40 40 62 100 65 Shots Fired 155 | 16 23 36 52 17 11 Gun 125 | 16 20 36 38 6 9 Cannon 17 | . . . 8 9 . Launcher 11 | . 3 . 6 . 2 Special 2 | . . . . 2 . Kinetic 123 | 16 20 36 38 13 . Thermal 9 | . . . . 4 5 Explosive 11 | . 3 . 6 . 2 Electromagnetic 12 | . . . 8 . 4 Robot Hit Streak 14 | 5 2 6 14 4 3 Robot Miss Streak 4 | 2 4 2 4 2 3 Penetration Max . | . . . . . . Secondary Targets 1 | . . 1 . . . Max Gunslinging Chain 1 | . . 1 . . . Shots Hit Robots 135 | 10 10 23 37 12 43 Core Hits 68 | 3 8 7 28 5 17 Critical Kills . | . . . . . . Critical Parts Destroyed 2 | . . . 1 1 . Critical Strikes 9 | . . . 1 3 5 Burn 1 | . . . . 1 . Destroy 1 | . . . 1 . . Blast 1 | . . . . 1 . Corrupt 1 | . . . . . 1 Smash 1 | . . . . 1 . Sever 4 | . . . . . 4 Melee Attacks 78 | . . . 12 3 63 Impact 17 | . . . 12 3 2 Slashing 61 | . . . . . 61 Piercing . | . . . . . . Sneak Attacks 3 | . . . 2 . 1 Combat Hostiles . | . . . . . . Follow-up Attacks . | . . . . . . Damage Inflicted 3513 | 120 275 288 1019 263 1548 Guns 1033 | 120 119 288 386 58 62 Cannons 211 | . . . 108 103 . Explosions 664 | . 156 . 334 . 174 Melee 1605 | . . . 191 102 1312 Ramming . | . . . . . . Kinetic 1080 | 120 119 288 420 133 . Thermal 59 | . . . . 28 31 Explosive 664 | . 156 . 334 . 174 Electromagnetic 105 | . . . 74 . 31 Impact 293 | . . . 191 102 . Slashing 1312 | . . . . . 1312 Piercing . | . . . . . . Highest Corruption 16 | . . . 13 13 16 Average Corruption 11 | . . . 10 13 11 Corruption Purged . | . . . . . . Corruption Blocked . | . . . . . . Effects 41 | . . . 17 10 14 Message Errors 7 | . . . 4 3 . Matter Fused 8 | . . . 3 1 4 Heat Flow Errors 5 | . . . 2 2 1 Energy Discharges 7 | . . . 2 1 4 Parts Rejected 2 | . . . 1 . 1 Data Loss (minor) 5 | . . . 3 2 . Data Loss (major) 3 | . . . 2 . 1 Alerts 2 | . . . . 1 1 Misdirections 2 | . . . . . 2 Overload Shots . | . . . . . . Overflow Damage 107 | . . . 66 36 5 Projectiles . | . . . . . . Explosions 5 | . . . . . 5 Melee 102 | . . . 66 36 . Knockbacks 2 | . . . 1 1 . Impact . | . . . . . . Kinetic 2 | . . . 1 1 . Secondary . | . . . . . . Self-Inflicted Damage 68 | . . . 27 . 41 Shots 3 | . . . 1 . 2 Rammed . | . . . . . . Targets Rammed . | . . . . . . Kicked . | . . . . . . Crushed . | . . . . . . Highest Temperature 263 | . . 2 263 119 159 Average Temperature 67 | . . 2 90 51 61 Received Heat Transfer 1095 | . 18 69 282 42 684 Siege Activations . | . . . . . . Robots Corrupted . | . . . . . . Combat Hostiles . | . . . . . . Parts Fried 1 | . . . 1 . . Impact Corruptions 2 | . . . 1 1 . Robots Melted . | . . . . . . Combat Hostiles . | . . . . . . Parts Melted 2 | . . . . 2 . Heat Transferred 222 | . . . . 148 74 Parts Sabotaged . | . . . . . . Parts Stolen . | . . . . . . Parts Stripped . | . . . . . . Power Chain Reactions . | . . . . . . Alert | -11 -10 -10 -9 -9 -8 ------- Run | Yrd Mat Min Mat Min Mat Peak Influence 390 | 10 164 123 302 201 390 Initial 110 | . 6 63 47 110 78 Average 135 | 4 100 114 168 163 136 Maximum Alert Level 1 | . . . 1 1 1 Low Security (%) 80 | 100 100 100 75 53 78 Level 1 19 | . . . 24 46 21 Level 2 . | . . . . . . Level 3 . | . . . . . . Level 4 . | . . . . . . Level 5 . | . . . . . . High Security . | . . . . . . Max Security . | . . . . . . Squads Dispatched 7 | . 1 . 1 . 5 Investigation 3 | . 1 . . . 2 Extermination . | . . . . . . Reinforcement 4 | . . . 1 . 3 Assault . | . . . . . . Garrison . | . . . . . . Intercept . | . . . . . . Searches Triggered . | . . . . . . Construction Impeded 1 | . . . . . 1 Haulers Reinforced . | . . . . . . Active Scanning Responses . | . . . . . . Cargo Convoy Interrupts . | . . . . . . Stealth | -11 -10 -10 -9 -9 -8 --------- Run | Yrd Mat Min Mat Min Mat Distress Signals 6 | . 1 . 2 . 3 Communications Jammed . | . . . . . . Distress Signals . | . . . . . . Times Spotted 74 | . 8 2 17 3 44 Peak Tracking Total 10 | . 3 2 4 2 10 Tactical Retreats 14 | . . . 2 1 11 Traps | -11 -10 -10 -9 -9 -8 ------- Run | Yrd Mat Min Mat Min Mat Traps Triggered 2 | . 1 . . . 1 Indirectly . | . . . . . . Trap Hack Attempts . | . . . . . . Triggered . | . . . . . . Disarmed 8 | . 4 . . . 4 Reprogrammed . | . . . . . . Reused . | . . . . . . Traps Extracted . | . . . . . . Installed . | . . . . . . Triggered . | . . . . . . Machines | -11 -10 -10 -9 -9 -8 ---------- Run | Yrd Mat Min Mat Min Mat Machines Disabled 3 | . . . 2 . 1 Max in Single Turn 1 | . . . 1 . 1 Machines Repaired . | . . . . . . Machines Dismantled . | . . . . . . Machines Sabotaged . | . . . . . . Overloaded Fab Kills . | . . . . . . Hacking | -11 -10 -10 -9 -9 -8 --------- Run | Yrd Mat Min Mat Min Mat Machines Accessed 6 | . 2 . 2 . 2 Terminals 6 | . 2 . 2 . 2 Fabricators . | . . . . . . Repair Stations . | . . . . . . Recycling Units . | . . . . . . Scanalyzers . | . . . . . . Garrison Access . | . . . . . . Total Hacks 20 | . 8 . 6 . 6 Successful 12 | . 4 . 3 . 5 Failed 8 | . 4 . 3 . 1 Catastrophic 1 | . 1 . . . . Database Lockouts . | . . . . . . Manual . | . . . . . . Terminals 20 | . 8 . 6 . 6 Fabricators . | . . . . . . Repair Stations . | . . . . . . Recycling Units . | . . . . . . Scanalyzers . | . . . . . . Garrison Access . | . . . . . . Terminal Hacks 12 | . 4 . 3 . 5 Record 7 | . 3 . 1 . 3 Level Access Points 1 | . . . 1 . . Disarm Traps 2 | . 1 . . . 1 Dispatch Records 1 | . . . . . 1 Registered Components 1 | . . . 1 . . Fabricator Hacks . | . . . . . . Repair Station Hacks . | . . . . . . Recycling Unit Hacks . | . . . . . . Scanalyzer . | . . . . . . Garrison Access Hacks . | . . . . . . Unauthorized Hacks . | . . . . . . Terminals . | . . . . . . Fabricators . | . . . . . . Repair Stations . | . . . . . . Recycling Units . | . . . . . . Scanalyzers . | . . . . . . Garrison Access . | . . . . . . Data Cores Recovered . | . . . . . . Used . | . . . . . . Hacking Detections 3 | . 1 . 1 . 1 Full Trace Events 1 | . . . . . 1 Feedback Events . | . . . . . . Feedback Blocked . | . . . . . . Robot Schematics Acquired . | . . . . . . Robots Built . | . . . . . . Authchips . | . . . . . . Time . | . . . . . . Total Robot Build Rating . | . . . . . . Part Schematics Acquired . | . . . . . . Parts Built . | . . . . . . Authchips . | . . . . . . Time . | . . . . . . Total Part Build Rating . | . . . . . . Parts Repaired . | . . . . . . Time . | . . . . . . Parts Recycled . | . . . . . . Recycled Matter . | . . . . . . Retrieved Matter . | . . . . . . Retrieved Components . | . . . . . . Parts Scanalyzed . | . . . . . . Part Schematics Acquired . | . . . . . . Parts Damaged . | . . . . . . Bothacking | -11 -10 -10 -9 -9 -8 ------------ Run | Yrd Mat Min Mat Min Mat Used RIF Installer . | . . . . . . Robots Hacked . | . . . . . . Non-combat . | . . . . . . Combat . | . . . . . . Robot Hacks Applied . | . . . . . . Relay Couplers Released . | . . . . . . Fabnet Peak Effective % . | . . . . . . Robots Rewired . | . . . . . . Allies Hacked . | . . . . . . Hacks Repelled . | . . . . . . Allies | -11 -10 -10 -9 -9 -8 -------- Run | Yrd Mat Min Mat Min Mat Total Allies 3 | . . . . 3 . Largest Group 3 | . . . . 3 3 Highest-Rated Group 40 | . . . . 40 40 Highest-Rated Ally 16 | . . . . 16 16 Total Orders . | . . . . . . Ally Attacks 19 | . . . . . 19 Total Damage 161 | . . . . . 161 Kills 2 | . . . . . 2 Allies Corrupted . | . . . . . . Allies Melted . | . . . . . . Intel | -11 -10 -10 -9 -9 -8 ------- Run | Yrd Mat Min Mat Min Mat Robot Analysis Total . | . . . . . . Derelict Logs Recovered 2 | . . 1 . 1 . Drone Launches . | . . . . . . Drone Recoveries . | . . . . . . Exploration | -11 -10 -10 -9 -9 -8 ------------- Run | Yrd Mat Min Mat Min Mat Turns Passed 2338 | 91 287 297 537 315 811 Spaces Moved 1203 | 38 148 150 190 159 518 Core 13 | 5 . . 4 . 4 Treads 732 | 33 148 150 124 159 118 Legs 2 | . . . 2 . . Wheels 60 | . . . 60 . . Hover 36 | . . . . . 36 Flight 360 | . . . . . 360 Fastest Speed 29 | 50 160 160 125 160 29 Average Speed 134 | 145 160 160 180 160 94 Slowest Speed 750 | 160 160 160 600 160 750 Overloaded Moves . | . . . . . . Propulsion Burnouts . | . . . . . . Robots Hopped 1 | . . . . . 1 Cave-ins Triggered 6 | . . . 3 . 3 Exploration Rate (%) 29 | 4 24 39 21 46 42 Regions Visited 5 Branch Regions 2 Pre-discovered Areas . | . . . . . . Known Exits Taken 2 | . . . 1 1 . Unknown Exits Taken 3 | 1 1 1 . . . Scrap Searched . | . . . . . . Spaces Dug 28 | . . . 8 2 18 Terrain Destroyed 77 | . 6 . 41 2 28 Melee 26 | . . . 8 . 18 Projectile 2 | . . . . 2 . AOE 49 | . 6 . 33 . 10 Terrain Rammed . | . . . . . . Walls Destroyed . | . . . . . . Machines Disabled . | . . . . . . Actions | -11 -10 -10 -9 -9 -8 --------- Run | Yrd Mat Min Mat Min Mat Total 1632 | 54 175 171 307 191 734 Wait 64 | . . . 6 8 50 Move 1195 | 37 147 149 188 158 516 Hop 1 | . . . . . 1 Pick Up 40 | 2 9 2 9 2 16 Fast Attach 38 | 7 . . 8 . 23 Attach 22 | . 1 . 7 . 14 Detach 8 | . 1 . 4 . 3 Swap 26 | . 3 1 12 5 5 Drop 49 | . 1 1 13 2 32 Fire 110 | 8 13 18 47 13 11 Melee 78 | . . . 12 3 63 Ram . | . . . . . . Kick . | . . . . . . Crush . | . . . . . . Escape Stasis 1 | . . . 1 . . Rewire . | . . . . . . Trap . | . . . . . . Miscellaneous . | . . . . . . Route ------- -11/Scrapyard -10/Materials (discovered 3 exits: [*Min x2] / [Sub]) -10/Mines -9/Materials (discovered 4 exits: Mat x3 / *Min) -9/Mines -8/Materials History --------- Turn | Location | Event 2 | -11/Scrapyard | Discovered new exit (range 16) 92 | -11/Scrapyard | Entered Materials 184 | -10/Materials | Discovered new exit (range 10) 221 | -10/Materials | Discovered new exit (range 14) 332 | -10/Materials | Build established: Mutant 340 | -10/Materials | Discovered new exit (range 13) 379 | -10/Materials | Entered Mines 457 | -10/Mines | Discovered new exit (range 11) 484 | -10/Mines | Learned Materials terminal intel 676 | -10/Mines | Entered Materials 676 | -9/Materials | Evolved 2 slots: Utility x2 677 | -9/Materials | Loaded intel: 12 terminal locations 751 | -9/Materials | Crushed by falling debris 795 | -9/Materials | Crushed by falling debris 795 | -9/Materials | System corruption reached 10% 831 | -9/Materials | Lost 4 parts (2n2u) 1029 | -9/Materials | Identified exit to Materials 1078 | -9/Materials | Discovered new exit (range 10) 1098 | -9/Materials | Core integrity fell below 50% 1110 | -9/Materials | Crushed by falling debris 1140 | -9/Materials | Core integrity fell below 20% 1155 | -9/Materials | Identified exit to Mines 1213 | -9/Materials | Entered Mines 1225 | -9/Mines | Learned 2 Materials zone layouts 1462 | -9/Mines | Build established: Scavenger-Mutant 1501 | -9/Mines | Assisted by bots powering up and referring to "LRC-V3" 1518 | -9/Mines | Discovered exit to Materials (range 7) 1528 | -9/Mines | Entered Materials 1528 | -8/Materials | Accompanied by 3 allies 1528 | -8/Materials | Evolved 2 slots: Propulsion x1, Utility x1 1983 | -8/Materials | Lost 3 allies 2019 | -8/Materials | Crushed by falling debris 2033 | -8/Materials | Crushed by falling debris 2034 | -8/Materials | Crushed by falling debris 2073 | -8/Materials | Lost 7 parts (1p1n4u1w) 2169 | -8/Materials | Core integrity fell below 50% 2177 | -8/Materials | System corruption reached 10% 2240 | -8/Materials | Core integrity fell below 20% 2284 | -8/Materials | Lost 11 parts (2p4n3u2w) 2339 | -8/Materials | Destroyed by G-47 Trooper with Particle Gun Last Messages --------------- 02248_ Critical hit (Burn: +37). 02251_ K-01 Serf collects debris. 02253_ Lgt. Nuclear Core destroyed. 02256_ System corrupted: Energy discharge (-21). 02260_ Pressure Siphon disabled. 02262_ Acquired Airjet. 02266_ K-01 Serf cleans the Pressure Siphon. 02275_ Connecting with Terminal... 02275_ ALERT: Suspicious activity at Terminal M007. Dispatching Investigation squad. 02281_ System corrupted: Substantial component data lost. 02281_ Acquired Lgt. Ion Engine. [Achievement: Universal Adapter] 02289_ Acquired ECM Suite. [Achievement: Slippery One] 02297_ System corrupted: IFF burst signal emitted. 02304_ K-01 Serf collects debris. 02325_ System corrupted: Heat flow error (+180). 02330_ The unstable cave ceiling collapses. 02330_ G-50 Soldier crushed by falling debris. Map ----- +----------------------------------------------------+ | ???# #?######"##### #???# #???????? | | ???# #?# #?# #???# #???????? | | ??## ### """"" #?# #??##+##+#####???? | | ??# ## """"" #?# #??# #???? | | ??# + """"" #?# #??# #???? | | ??# ## """"" #?# #??# #???? | | ?###+### """"" #?? ???# #???? | | ?# # """"" #?? ???###########???? | | ?#! # """"" #?? #????????????????? | | ?# # ! * #?? #????????????????? | | ?#| #####+###### #????????????????? | | ?#####"#### #????????????????? | | ??# # ? #????????????????? | | ??# [] + ##+#####????????????? | | ??# ] # # #????????????? | | ?######"### # """ #????????????? | | ?# # # """ #????????????? | | ?# # + """ #????????????? | | ?# # gg#### #????????????? | | ?# # ## # =#????????????? | | ?# # # #########????????????? | | ?# # ;##????????????????????? | | ?# # ##?????????????????????? | | ?# # #??????????????????????? | | ?# # #??????????????????????? | | ?#####+#+## @######?????????????????? | | ?????# #?????????????????? | | ?????# #?????????????????? | | ?????# #?????????????????? | | ???#####+####+## #?????????????????? | | ???# # #?????????????????? | | ???# "" #####?????????????????? | | ???# """ """#?????????????????????? | | ???# """ S"#?????????????????????? | | ???# """ """#?????????????????????? | | ???# """#?????????????????????? | | ???# #?????????????????????? | | ???#############?????????????????????? | | | | | | | | | | | | | | | | | | | | | | | | | +----------------------------------------------------+ Best States ------------- Heat Dissipation 58 Energy Generation 14 Energy Capacity 515 Matter Stores 300 Matter Capacity 300 Sight Range 16 Robot Scan Range 14 Terrain Scan Range 16 Terrain Scan Density 10 ECM Strength 1 Armor Coverage 225 Core Shielding 20 Power Shielding 33 Evasion (%) 72 Melee Accuracy 5 Recoil Reduction 2 Defensive Hacking 10 Item Schematics ----------------- None Robot Schematics ------------------ None Fabricated ------------ Nothing Alien Tech Used ----------------- None Achievements -------------- Slippery One Universal Adapter Unlikely Earthworm Challenges ------------ None Game ------ Seed ShrapnelDefenseTendrils Manual? 0 Play Time 00:52:30 Cumulative 6.4 hours Start 2024.09.11 @ 20:35:53 End 2024.09.11 @ 21:28:37 Sessions 1 Manual Loads 0 Difficulty Rogue Special Mode None Game No. 11 Rogue 11 Adventurer 0 Explorer 0 Win Type - Total 0 Types 0/0/0/0/0/0/0/0/0 Lore% 2 Gallery% 13 Achievement% 13 Wizard Run 0 Options --------- Layout 0 ASCII 0 Keyboard 0 Movement Mouse Keybinds 0 Fullscreen 1 Font 18/X11 Map View 38x25 Zoom Use 98% Tactical HUD 1 Map Filters NONE Filters NONE Steam 1 RUN: 04a85b4b-c79d-4dac-a171-23fb10dfed8e